fUSD/lending_fUSD_20260614
["ID","MTS","AMOUNT","RATE_DAILY","PERIOD"]
[425016353,1781432875000,-200.0,0.00018356,2]
[425016351,1781432875000,-163.0,0.0001829,2]
[425016354,1781432875000,-166.66,0.00018373,2]
[425016373,1781432876000,-350.0,0.00019679,2]
[425016368,1781432876000,-320.15,0.00019215,2]
[425016372,1781432876000,-2570.18256994,0.00019667,2]
[425016371,1781432876000,-350.0,0.00019582,2]
[425016370,1781432876000,-166.66,0.00019534,2]
[425016369,1781432876000,-320.15,0.00019515,2]
[425016367,1781432876000,-166.66,0.00019147,2]
[425016380,1781432876000,-502.64,0.00019897,2]
[425016366,1781432876000,-197.73,0.00019119,2]
[425016364,1781432876000,-157.0,0.00019,2]
[425016363,1781432876000,-154.0,0.00019,2]
[425016361,1781432876000,-155.62229823,0.00019,2]
[425016362,1781432876000,-153.0,0.00019,2]
[425016360,1781432876000,-19910.43984569,0.0001899,2]
[425016374,1781432876000,-134425.1790749,0.00019763,2]
[425016365,1781432876000,-153.0,0.0001905,2]
[425016377,1781432876000,-320.18,0.00019796,2]
[425016383,1781432876000,-2000.0,0.000199,2]
[425016376,1781432876000,-320.15,0.00019767,2]
[425016394,1781432876000,-151.49,0.00019945,2]
[425016393,1781432876000,-166.66,0.0001992,2]
[425016392,1781432876000,-659.090084,0.00019911,2]
[425016391,1781432876000,-440.16451,0.000199,2]
[425016390,1781432876000,-10000.0,0.000199,2]
[425016389,1781432876000,-150.60680243,0.000199,2]
[425016375,1781432876000,-659.090084,0.00019763,2]
[425016388,1781432876000,-239.27879558,0.000199,2]
[425016386,1781432876000,-6179.43239311,0.000199,2]
[425016385,1781432876000,-50452.3401,0.000199,2]
[425016382,1781432876000,-207.94386414,0.000199,2]
[425016384,1781432876000,-12012.3762,0.000199,2]
[425016381,1781432876000,-2020.4456,0.000199,2]
[425016379,1781432876000,-200.0,0.0001984,2]
[425016378,1781432876000,-440.1645,0.000198,2]
[425016387,1781432876000,-2500.0,0.000199,2]
[425016404,1781432877000,-2000.0,0.00019999,2]
[425016409,1781432877000,-566.55,0.00019999,2]
[425016410,1781432877000,-566.55,0.00019999,2]
[425016408,1781432877000,-566.55,0.00019999,2]
[425016407,1781432877000,-566.55,0.00019999,2]
[425016406,1781432877000,-566.55,0.00019999,2]
[425016403,1781432877000,-300.0,0.00019999,2]
[425016405,1781432877000,-200.0,0.00019999,2]
[425016402,1781432877000,-300.0,0.00019999,2]
[425016400,1781432877000,-135.27018954,0.00019999,2]
[425016398,1781432877000,-790.13,0.0001998,2]
[425016399,1781432877000,-875.22,0.0001998,2]
[425016397,1781432877000,-440.56,0.0001998,2]
[425016396,1781432877000,-500.0,0.00019979,2]
[425016395,1781432877000,-350.0,0.00019945,2]
[425016411,1781432877000,-566.55,0.00019999,2]
[425016401,1781432877000,-300.0,0.00019999,2]
[425016413,1781432877000,-566.55,0.00019999,2]
[425016412,1781432877000,-566.55,0.00019999,2]
[425016415,1781432877000,-566.55,0.00019999,2]
[425016414,1781432877000,-566.55,0.00019999,2]
[425016432,1781432877000,-70922.36193743,0.0002,2]
[425016429,1781432877000,-3263188.52191786,0.0002,2]
[425016431,1781432877000,-600.65631359,0.0002,2]
[425016428,1781432877000,-212.0,0.0002,5]
[425016426,1781432877000,-500.0,0.00019999,2]
[425016427,1781432877000,-200.0,0.00019999,2]
[425016425,1781432877000,-500.0,0.00019999,2]
[425016424,1781432877000,-500.0,0.00019999,2]
[425016430,1781432877000,-1334.03,0.0002,2]
[425016423,1781432877000,-505.02166038,0.00019999,2]
[425016422,1781432877000,-500.0,0.00019999,2]
[425016420,1781432877000,-500.0,0.00019999,2]
[425016417,1781432877000,-566.55,0.00019999,2]
[425016419,1781432877000,-566.55,0.00019999,2]
[425016418,1781432877000,-566.55,0.00019999,2]
[425016416,1781432877000,-566.55,0.00019999,2]
[425016421,1781432877000,-500.0,0.00019999,2]
[425016433,1781432877000,-154.824027,0.0002,2]
[425016444,1781432878000,-151.0,0.0002,2]
[425016443,1781432878000,-171.0,0.0002,2]
[425016442,1781432878000,-163.0,0.0002,2]
[425016441,1781432878000,-197.0,0.0002,2]
[425016436,1781432878000,-2570.61,0.0002,2]
[425016437,1781432878000,-151.0,0.0002,2]
[425016438,1781432878000,-2000.0,0.0002,7]
[425016435,1781432878000,-199.999999,0.0002,2]
[425016434,1781432878000,-264.97612896,0.0002,30]
[425016445,1781432878000,-151.0,0.0002,2]
[425016439,1781432878000,-168.0,0.0002,2]
[425016446,1781432878000,-158.29196,0.0002,2]
[425016440,1781432878000,-177.0,0.0002,2]
[425016449,1781432878000,-151.0,0.0002,2]
[425016447,1781432878000,-316.0,0.0002,2]
[425016458,1781432878000,-151.0,0.0002,2]
[425016459,1781432878000,-440.16451,0.0002,2]
[425016456,1781432878000,-463.957161,0.0002,2]
[425016457,1781432878000,-1000.0,0.0002,2]
[425016455,1781432878000,-309.0,0.0002,2]
[425016460,1781432878000,218.94679362,0.0002,2]
[425016453,1781432878000,-214.11,0.0002,2]
[425016452,1781432878000,-157.0,0.0002,2]
[425016451,1781432878000,-154.0,0.0002,2]
[425016450,1781432878000,-201.0,0.0002,2]
[425016448,1781432878000,-633.24591281,0.0002,2]
[425016454,1781432878000,-629.220199,0.0002,2]
[425016461,1781432993000,250.0,0.00014,2]
[425016464,1781433032000,-277.70821029,0.00016,2]
[425016466,1781433032000,-341.94607342,0.00018,2]
[425016465,1781433032000,-22.29178971,0.00016,2]
[425016467,1781433032000,-164.05392658,0.00018,2]
[425016468,1781433032000,-334.83994801,0.00018889,2]
[425016512,1781433040000,-165.16005199,0.00018889,2]
[425016513,1781433040000,-500.0,0.00018889,2]
[425016514,1781433040000,-528.91659964,0.00018889,2]
[425016515,1781433040000,-26.70358639,0.0001889,2]
[425016516,1781433040000,-3216.5170958,0.0001889,2]
[425016519,1781433040000,-1314.70254899,0.0001889,2]
[425016518,1781433040000,-341.50517263,0.0001889,2]
[425016520,1781433040000,-2142.76,0.0001889,2]
[425016522,1781433040000,-1122.39622508,0.0001889,2]
[425016521,1781433040000,-1998.46154627,0.0001889,2]
[425016517,1781433040000,-2943.38431294,0.0001889,2]
[425016526,1781433041000,-512.54,0.0001889,2]
[425016525,1781433041000,-14533.61996893,0.0001889,2]
[425016549,1781433047000,-1804.40609282,0.0001889,2]
[425016548,1781433047000,-1213.52618726,0.0001889,2]
[425016546,1781433047000,-371.03591935,0.00018889,2]
[425016550,1781433047000,-923.0,0.0001889,2]
[425016552,1781433047000,-2599.65153884,0.0001889,2]
[425016553,1781433047000,-13260.09681856,0.0001889,2]
[425016551,1781433047000,-397.54120212,0.0001889,2]
[425016565,1781433048000,-194.0,0.0002,2]
[425016568,1781433048000,-164.0,0.0002005,2]
[425016570,1781433048000,-440.16451,0.000201,2]
[425016571,1781433048000,-532.90282334,0.00020116,2]
[425016569,1781433048000,-659.090084,0.00020059,2]
[425016567,1781433048000,-804.15348108,0.00020014,2]
[425016566,1781433048000,-216.0,0.0002,2]
[425016572,1781433048000,-200.0,0.00020199,2]
[425016563,1781433048000,-633.0,0.0002,2]
[425016560,1781433048000,-2500.0,0.000198,2]
[425016561,1781433048000,-153.0,0.0002,2]
[425016562,1781433048000,-154.0,0.0002,2]
[425016559,1781433048000,-155.0,0.00019,2]
[425016557,1781433048000,-1975.22030337,0.0001889,2]
[425016558,1781433048000,-153.0,0.00019,2]
[425016564,1781433048000,-155.0,0.0002,2]
[425016573,1781433048000,-200.0,0.00020199,2]
[425016585,1781433048000,-564.79,0.000204,2]
[425016574,1781433048000,-440.1645,0.000202,2]
[425016589,1781433048000,-1020.19102371,0.0002041,30]
[425016587,1781433048000,-200.0,0.00020401,2]
[425016586,1781433048000,-200.0,0.000204,10]
[425016588,1781433048000,-200.0,0.00020401,2]
[425016590,1781433048000,-616.0,0.0002041,30]
[425016584,1781433048000,-524.24,0.000204,2]
[425016581,1781433048000,-350.0,0.0002035,2]
[425016575,1781433048000,-169.82,0.00020206,2]
[425016582,1781433048000,-659.090086,0.00020356,2]
[425016579,1781433048000,-440.16451,0.000203,2]
[425016580,1781433048000,-166.66,0.00020307,2]
[425016578,1781433048000,-165.43,0.000203,2]
[425016577,1781433048000,-659.090084,0.00020208,2]
[425016576,1781433048000,-169.82,0.00020206,2]
[425016583,1781433048000,-151.6,0.00020381,2]
[425016591,1781433197000,-154.0,0.0001629,2]
[425016592,1781433348000,-151.0,0.0001629,2]
[425016597,1781433562000,-255.6,0.00016438,2]
[425016599,1781433646000,200.77,0.00015,2]
[425016600,1781433656000,-696.41,0.000167,2]
[425016602,1781433657000,-505.0,0.00018,2]
[425016601,1781433657000,-1500.0,0.00017918,2]
[425016603,1781433657000,-614.0,0.00018082,2]
[425016604,1781433657000,-255.6,0.0001841,2]
[425016605,1781433657000,-163.68,0.00018466,2]
[425016606,1781433657000,-1555.5,0.00018466,2]
[425016610,1781433657000,-187.638,0.00018793,2]
[425016608,1781433657000,-268.9556,0.0001879,2]
[425016609,1781433657000,-2433.17,0.00018793,2]
[425016611,1781433657000,-391.37,0.00018989,2]
[425016613,1781433657000,-475.54568053,0.00019014,2]
[425016612,1781433657000,-643.87071947,0.00019004,2]
[425016607,1781433657000,-309.26,0.00018727,2]
[425016615,1781433658000,-2500.0,0.00019077,2]
[425016614,1781433658000,-1137.50781947,0.00019014,2]
[425016616,1781433659000,-2313.164313,0.0001908,2]
[425016618,1781433659000,-500.0,0.00019176,2]
[425016617,1781433659000,-1448.16986691,0.0001908,2]
[425016619,1781433659000,-633.54736959,0.00019176,2]
[425016621,1781433659000,-967.61063103,0.00019177,2]
[425016620,1781433659000,-500.0,0.00019176,2]
[425016622,1781433660000,-10000.0,0.00019177,2]
[425016623,1781433661000,-10000.0,0.00019177,2]
[425016624,1781433662000,-10000.0,0.00019177,2]
[425016626,1781433663000,-10000.0,0.00019177,2]
[425016625,1781433663000,-10000.0,0.00019177,2]
[425016627,1781433664000,-10000.0,0.00019177,2]
[425016628,1781433665000,-10000.0,0.00019177,2]
[425016629,1781433666000,-10000.0,0.00019177,2]
[425016630,1781433672000,-1805.0,0.00019177,2]
[425016631,1781433732000,213.0,0.00016438,2]
[425016633,1781433779000,-151.0,0.0001734,2]
[425016632,1781433779000,-151.0,0.0001734,2]
[425016634,1781433828000,-151.0,0.00018377,2]
[425016635,1781433828000,-456.05441729,0.00018377,2]
[425016636,1781433828000,-552.40913065,0.00018377,2]
[425016639,1781433828000,-211.17045206,0.00018868,2]
[425016637,1781433828000,-213.0,0.0001841,2]
[425016638,1781433828000,-384.366,0.00018777,2]
[425016641,1781433844000,-151.0,0.00018955,2]
[425016640,1781433844000,-102.40954794,0.00018868,2]
[425016645,1781433935000,-130.07542851,0.00018964,2]
[425016644,1781433935000,-150.0,0.00018912,2]
[425016643,1781433935000,-153.0,0.00018899,2]
[425016642,1781433935000,-152.0,0.00018894,2]
[425016646,1781434032000,177.5,0.00016438,2]
[425016647,1781434037000,-493.25535265,0.00018,2]
[425016652,1781434040000,-151.0,0.00018896,2]
[425016648,1781434040000,-11.74464735,0.00018,2]
[425016649,1781434040000,-151.0,0.00018,2]
[425016650,1781434040000,-177.5,0.0001841,2]
[425016653,1781434040000,-218.37527295,0.00018896,2]
[425016655,1781434040000,-107.45980779,0.00018901,2]
[425016654,1781434040000,-152.0,0.00018897,2]
[425016651,1781434040000,-151.0,0.00018895,2]
[425016656,1781434148000,-150.0,0.00018,2]
[425016658,1781434148000,-152.0,0.00018001,2]
[425016661,1781434148000,-151.0,0.00018065,2]
[425016657,1781434148000,-151.0,0.00018,2]
[425016659,1781434148000,-152.0,0.00018004,2]
[425016662,1781434148000,-151.0,0.00018258,2]
[425016663,1781434148000,-247.0,0.00018391,2]
[425016660,1781434148000,-150.0,0.00018016,2]
[425016665,1781434176000,-153.0,0.00017603,2]
[425016664,1781434176000,-166.66,0.00017511,2]
[425016666,1781434177000,-150.34,0.00017879,2]
[425016683,1781434231000,-166.66,0.00018248,2]
[425016691,1781434231000,-152.0,0.00018919,2]
[425016688,1781434231000,-2825.93677502,0.000188,2]
[425016686,1781434231000,-166.66,0.00018617,2]
[425016685,1781434231000,-31.09003341,0.00018391,2]
[425016677,1781434231000,-152.0,0.00017533,2]
[425016681,1781434231000,-16.32,0.00017879,2]
[425016682,1781434231000,-152.0,0.00018,2]
[425016679,1781434231000,-35.04440175,0.00017563,2]
[425016680,1781434231000,-151.0,0.00017653,2]
[425016678,1781434231000,-116.95559825,0.00017563,2]
[425016689,1781434231000,-313.09,0.00018851,2]
[425016684,1781434231000,-34.99996659,0.00018391,2]
[425016694,1781434231000,-207.8143075,0.00019015,2]
[425016687,1781434231000,-807.61393979,0.000188,2]
[425016690,1781434231000,-42.54019221,0.00018901,2]
[425016696,1781434231000,-150.0,0.00019075,2]
[425016709,1781434231000,-1254.41808677,0.00019083,2]
[425016701,1781434231000,-500.7966,0.00019077,2]
[425016707,1781434231000,-1342.96579002,0.00019077,2]
[425016703,1781434231000,-2349.62928756,0.00019077,2]
[425016708,1781434231000,-17367.65741861,0.00019083,2]
[425016699,1781434231000,-187.638,0.00019076,2]
[425016704,1781434231000,-4962.5680304,0.00019077,2]
[425016698,1781434231000,-1946.536,0.00019076,2]
[425016700,1781434231000,-19912.3872,0.00019077,2]
[425016697,1781434231000,-300.0,0.00019075,2]
[425016695,1781434231000,-1500.0,0.00019016,2]
[425016692,1781434231000,-20.92457149,0.00018964,2]
[425016706,1781434231000,-781.06660378,0.00019077,2]
[425016693,1781434231000,-166.66,0.00018985,2]
[425016717,1781434237000,-151.0,0.0001754,2]
[425016718,1781434237000,-154.32105601,0.00019083,2]
[425016719,1781434237000,-2166.69787519,0.00019083,2]
[425016750,1781434238000,-389.59,0.0001995,2]
[425016744,1781434238000,-313.09,0.00019771,2]
[425016747,1781434238000,-157.0,0.00019936,2]
[425016737,1781434238000,-151.9788357,0.0001918,2]
[425016745,1781434238000,-10274.98755929,0.00019771,2]
[425016741,1781434238000,-1555.5,0.00019564,2]
[425016748,1781434238000,-154.77155199,0.00019945,2]
[425016746,1781434238000,-2500.0,0.000198,2]
[425016751,1781434238000,-153.0,0.00019999,2]
[425016765,1781434238000,-159.0,0.0002,2]
[425016749,1781434238000,-450.29869313,0.00019945,2]
[425016753,1781434238000,-154.824028,0.0002,2]
[425016764,1781434238000,-322.0,0.0002,2]
[425016761,1781434238000,-156.0,0.0002,2]
[425016760,1781434238000,-153.0,0.0002,2]
[425016757,1781434238000,-167.0,0.0002,2]
[425016754,1781434238000,-150.0,0.0002,2]
[425016739,1781434238000,-166.66,0.00019354,2]
[425016752,1781434238000,-3996.25231258,0.0002,2]
[425016735,1781434238000,-513717.16931957,0.00019177,2]
[425016755,1781434238000,-248.84081477,0.0002,2]
[425016740,1781434238000,-193.850024,0.00019465,2]
[425016763,1781434238000,-174.0,0.0002,2]
[425016720,1781434238000,-4519.37232996,0.00019083,2]
[425016722,1781434238000,-300.0,0.00019083,7]
[425016723,1781434238000,-32136.97561885,0.00019128,2]
[425016724,1781434238000,-1550.68313241,0.00019128,2]
[425016721,1781434238000,-3358.69025296,0.00019083,2]
[425016726,1781434238000,-724.85,0.00019176,2]
[425016725,1781434238000,-592.90348364,0.00019128,2]
[425016727,1781434238000,-73.73715647,0.00019176,2]
[425016728,1781434238000,-651.11284353,0.00019176,2]
[425016731,1781434238000,-500.0,0.00019176,2]
[425016733,1781434238000,-244.23749385,0.00019176,2]
[425016732,1781434238000,-500.0,0.00019176,2]
[425016729,1781434238000,-500.0,0.00019176,2]
[425016730,1781434238000,-353.02768617,0.00019176,2]
[425016743,1781434238000,-193.850026,0.00019752,2]
[425016742,1781434238000,-700.0,0.00019653,2]
[425016736,1781434238000,-193.850024,0.00019177,2]
[425016738,1781434238000,-313.09,0.00019311,2]
[425016734,1781434238000,-296.00250615,0.00019176,2]
[425016759,1781434238000,-156.0,0.0002,2]
[425016784,1781434238000,-162.79,0.00020442,2]
[425016762,1781434238000,-156.0,0.0002,2]
[425016789,1781434238000,-314.0,0.0002062,2]
[425016795,1781434238000,-552.87049757,0.00020771,2]
[425016790,1781434238000,-550.34282189,0.00020631,2]
[425016793,1781434238000,-500.0,0.00020664,2]
[425016792,1781434238000,-550.34282189,0.0002066,2]
[425016791,1781434238000,-1672.7364795,0.0002066,2]
[425016794,1781434238000,-151.0,0.00020759,2]
[425016788,1781434238000,-300.0,0.000205,10]
[425016786,1781434238000,-15000.0,0.00020458,2]
[425016797,1781434238000,-2810.7228361,0.00020824,2]
[425016799,1781434238000,-266.401176,0.00020853,2]
[425016800,1781434238000,-552.87049757,0.00020868,2]
[425016801,1781434238000,-550.34282189,0.00020879,2]
[425016802,1781434238000,-2865.66491009,0.000209,30]
[425016805,1781434238000,-550.34282189,0.00020956,2]
[425016806,1781434238000,-550.34282189,0.00020961,2]
[425016803,1781434238000,-8053.85195207,0.00020916,2]
[425016758,1781434238000,-232.0,0.0002,2]
[425016796,1781434238000,-15000.0,0.0002081,2]
[425016787,1781434238000,-1342.96578998,0.00020486,2]
[425016798,1781434238000,-723.54341004,0.00020824,2]
[425016782,1781434238000,-200.0,0.0002041,2]
[425016756,1781434238000,-205.0,0.0002,2]
[425016785,1781434238000,-500.0,0.00020451,2]
[425016767,1781434238000,-500.0,0.00020063,2]
[425016766,1781434238000,-151.0,0.0002,2]
[425016769,1781434238000,-5743.63463416,0.00020082,2]
[425016768,1781434238000,-2349.62928751,0.00020082,2]
[425016772,1781434238000,-175.99838716,0.00020128,2]
[425016775,1781434238000,-200.0,0.00020238,2]
[425016773,1781434238000,-313.09,0.0002023,2]
[425016770,1781434238000,-463.0,0.000201,2]
[425016771,1781434238000,-1613.0535,0.00020112,2]
[425016777,1781434238000,-352.67,0.00020327,2]
[425016776,1781434238000,-350.0,0.0002029,2]
[425016781,1781434238000,-1414.32710691,0.0002041,30]
[425016783,1781434238000,-398.0,0.0002041,2]
[425016804,1781434238000,-550.34282189,0.00020939,2]
[425016778,1781434238000,-500.0,0.00020381,2]
[425016774,1781434238000,-155.29,0.00020233,2]
[425016780,1781434238000,-200.0,0.000204,10]
[425016779,1781434238000,-177.5,0.00020381,2]
[425016836,1781434239000,-220.26,0.00021581,2]
[425016847,1781434239000,-419.0,0.00021646,2]
[425016841,1781434239000,-1275.0,0.00021646,2]
[425016842,1781434239000,-519.0,0.00021646,2]
[425016844,1781434239000,-383.0,0.00021646,2]
[425016835,1781434239000,-151.0,0.00021581,2]
[425016837,1781434239000,-250.0,0.00021583,7]
[425016838,1781434239000,-151.0,0.00021583,2]
[425016851,1781434239000,-956.424,0.00021646,2]
[425016840,1781434239000,-3560.865,0.00021646,2]
[425016850,1781434239000,-150.0,0.00021646,2]
[425016855,1781434239000,-1342.96578998,0.00021895,2]
[425016848,1781434239000,-150.0,0.00021646,2]
[425016849,1781434239000,-150.0,0.00021646,2]
[425016845,1781434239000,-1228.0,0.00021646,2]
[425016863,1781434239000,-2027.83010996,0.00022,2]
[425016852,1781434239000,-150.045,0.00021646,2]
[425016853,1781434239000,-1076.03910763,0.00021756,2]
[425016862,1781434239000,-425.32469424,0.00021991,2]
[425016859,1781434239000,-150.0,0.00021918,2]
[425016861,1781434239000,-500.0,0.00021923,2]
[425016854,1781434239000,-350.0,0.00021871,2]
[425016839,1781434239000,-1359.0,0.00021646,2]
[425016846,1781434239000,-150.0,0.00021646,2]
[425016834,1781434239000,-350.0,0.00021452,2]
[425016816,1781434239000,-174.0,0.00021,2]
[425016832,1781434239000,-500.0,0.00021284,2]
[425016807,1781434239000,-179.05304005,0.00020977,2]
[425016810,1781434239000,-10378.40174066,0.00021,2]
[425016808,1781434239000,-15000.0,0.00020987,2]
[425016811,1781434239000,-205.0,0.00021,2]
[425016857,1781434239000,-2000.0,0.000219,2]
[425016814,1781434239000,-153.0,0.00021,2]
[425016812,1781434239000,-232.0,0.00021,2]
[425016815,1781434239000,-156.0,0.00021,2]
[425016813,1781434239000,-156.0,0.00021,2]
[425016817,1781434239000,-322.0,0.00021,2]
[425016818,1781434239000,-159.0,0.00021,2]
[425016831,1781434239000,-15000.0,0.00021279,2]
[425016820,1781434239000,-724.85,0.00021067,2]
[425016821,1781434239000,-309.26,0.00021068,2]
[425016822,1781434239000,-2349.62928751,0.00021086,2]
[425016823,1781434239000,-5743.63463416,0.00021086,2]
[425016825,1781434239000,-1734.62772924,0.00021208,2]
[425016828,1781434239000,-1062.66,0.00021273,2]
[425016829,1781434239000,-11499.62,0.00021273,2]
[425016826,1781434239000,-191.3489,0.00021213,2]
[425016824,1781434239000,-500.0,0.00021088,2]
[425016827,1781434239000,-716.69,0.00021273,2]
[425016830,1781434239000,-405.24,0.00021273,2]
[425016833,1781434239000,-157.671533,0.00021306,2]
[425016819,1781434239000,-165.0,0.00021,2]
[425016860,1781434239000,-150.0,0.00021918,2]
[425016809,1781434239000,-336.21,0.00020991,2]
[425016858,1781434239000,-5000.0,0.00021918,2]
[425016901,1781434239000,-1848.99,0.00022644,120]
[425016897,1781434239000,-501.00611883,0.00022442,2]
[425016899,1781434239000,-501.00611883,0.00022467,2]
[425016900,1781434239000,-500.0,0.00022581,2]
[425016903,1781434239000,-551.0,0.00022683,7]
[425016913,1781434239000,-1017.70717139,0.00023,2]
[425016912,1781434239000,-565.6298049,0.00022938,2]
[425016902,1781434239000,-695.83151192,0.00022668,2]
[425016915,1781434239000,-232.0,0.00023,2]
[425016910,1781434239000,-695.83151192,0.00022907,2]
[425016914,1781434239000,-205.0,0.00023,2]
[425016895,1781434239000,-573.02,0.00022411,2]
[425016908,1781434239000,-1848.99,0.0002289,120]
[425016906,1781434239000,-225.0,0.0002289,5]
[425016917,1781434239000,-154.29885595,0.00023,2]
[425016919,1781434239000,-322.0,0.00023,2]
[425016918,1781434239000,-174.0,0.00023,2]
[425016920,1781434239000,-577.75642072,0.00023012,2]
[425016922,1781434239000,-500.0,0.00023056,2]
[425016925,1781434239000,-577.75642072,0.00023057,2]
[425016924,1781434239000,-500.0,0.00023056,2]
[425016923,1781434239000,-500.0,0.00023056,2]
[425016921,1781434239000,-150.0,0.00023014,2]
[425016856,1781434239000,-238.0,0.000219,7]
[425016904,1781434239000,-565.6298049,0.00022865,2]
[425016888,1781434239000,-644.12,0.0002241,2]
[425016916,1781434239000,-161.96556163,0.00023,2]
[425016887,1781434239000,-151.0,0.00022403,2]
[425016865,1781434239000,-232.0,0.00022,2]
[425016891,1781434239000,-1449.19691032,0.00022411,7]
[425016864,1781434239000,-205.0,0.00022,2]
[425016866,1781434239000,-156.0,0.00022,2]
[425016867,1781434239000,-153.0,0.00022,2]
[425016873,1781434239000,-2349.62928751,0.00022091,2]
[425016869,1781434239000,-174.0,0.00022,2]
[425016872,1781434239000,-166.61590978,0.00022,2]
[425016870,1781434239000,-322.0,0.00022,2]
[425016868,1781434239000,-167.36709755,0.00022,2]
[425016874,1781434239000,-5743.63463416,0.00022091,2]
[425016876,1781434239000,-1848.99,0.00022151,120]
[425016875,1781434239000,-550.34282189,0.00022144,2]
[425016871,1781434239000,-780.02,0.00022,2]
[425016889,1781434239000,-573.37,0.0002241,2]
[425016879,1781434239000,-695.83151192,0.00022288,2]
[425016880,1781434239000,-695.83151192,0.00022292,2]
[425016878,1781434239000,-350.0,0.00022247,2]
[425016893,1781434239000,-185.08,0.00022411,2]
[425016883,1781434239000,-723.54341004,0.00022346,2]
[425016881,1781434239000,-695.83151192,0.00022294,2]
[425016884,1781434239000,-177.5,0.00022353,2]
[425016882,1781434239000,-695.83151192,0.0002231,2]
[425016885,1781434239000,-1848.99,0.00022397,120]
[425016886,1781434239000,-180.89,0.00022403,2]
[425016877,1781434239000,-695.83151192,0.00022178,2]
[425016974,1781434240000,-573.17,0.00024047,2]
[425016962,1781434240000,-208.222541,0.00023948,2]
[425016973,1781434240000,-500.0,0.00024009,2]
[425016963,1781434240000,-174.61919141,0.00023948,2]
[425016955,1781434240000,-336.21,0.00023615,2]
[425016960,1781434240000,-200.385549,0.000239,2]
[425016953,1781434240000,-10000.0,0.00023463,7]
[425016954,1781434240000,-216.06106235,0.00023463,7]
[425016956,1781434240000,-1848.99,0.0002363,120]
[425016965,1781434240000,-500.0,0.00023956,2]
[425016957,1781434240000,-216.06106235,0.00023803,2]
[425016966,1781434240000,-1674.0,0.0002398,2]
[425016982,1781434240000,-185.12,0.00024055,2]
[425016971,1781434240000,-322.0,0.00024,2]
[425016968,1781434240000,-205.0,0.00024,2]
[425016967,1781434240000,-154.824028,0.00024,2]
[425016970,1781434240000,-174.0,0.00024,2]
[425016964,1781434240000,-578.20924308,0.00023948,2]
[425016972,1781434240000,-500.0,0.00024009,2]
[425016975,1781434240000,-644.12,0.00024053,2]
[425016977,1781434240000,-185.12,0.00024053,2]
[425016978,1781434240000,-644.12,0.00024053,2]
[425016980,1781434240000,-482.27,0.00024053,2]
[425016976,1781434240000,-573.13,0.00024053,2]
[425016959,1781434240000,-1848.99,0.00023877,120]
[425016969,1781434240000,-232.0,0.00024,2]
[425016958,1781434240000,-151.0,0.00023877,5]
[425016927,1781434240000,-577.75642072,0.00023088,2]
[425016961,1781434240000,-13655.9016,0.00023911,7]
[425016926,1781434240000,-577.75642072,0.00023073,2]
[425016985,1781434240000,-185.1,0.00024055,2]
[425016931,1781434240000,-1848.99,0.00023137,120]
[425016933,1781434240000,-151.0,0.00023223,2]
[425016928,1781434240000,-2349.62928751,0.00023096,2]
[425016930,1781434240000,-683.66949205,0.00023104,2]